fUSD/lending_fUSD_20250622
["ID","MTS","AMOUNT","RATE_DAILY","PERIOD"]
[366903157,1750561849570,-490.0,0.00019178,2]
[366903158,1750561849579,-490.0,0.00019178,2]
[366903159,1750561849588,-490.0,0.00019178,2]
[366903160,1750561849598,-490.0,0.00019178,2]
[366903161,1750561849608,-490.0,0.00019178,2]
[366903162,1750561849617,-490.0,0.00019178,2]
[366903163,1750561849627,-3561.72,0.00019178,2]
[366903164,1750561849637,-490.0,0.00019178,2]
[366903165,1750561849647,-490.0,0.00019178,2]
[366903166,1750561849658,-490.0,0.00019178,2]
[366903167,1750561849668,-490.0,0.00019178,2]
[366903168,1750561849678,-2053.61,0.00019178,2]
[366903169,1750561849688,-1833.36,0.00019178,2]
[366903170,1750561849698,-490.0,0.00019178,2]
[366903171,1750561849708,-473.27193782,0.00019178,2]
[366903172,1750561849719,-490.0,0.00019178,2]
[366903173,1750561849729,-1414.88,0.00019178,2]
[366903174,1750561849739,-961.9,0.00019178,2]
[366903175,1750561849749,-490.0,0.00019178,2]
[366903176,1750561849759,-490.0,0.00019178,2]
[366903177,1750561849769,-490.0,0.00019178,2]
[366903178,1750561849779,-490.0,0.00019178,2]
[366903179,1750561849788,-2484.47,0.00019178,2]
[366903180,1750561849798,-490.0,0.00019178,2]
[366903181,1750561849808,-2447.55,0.00019178,2]
[366903182,1750561849818,-675.89,0.00019178,2]
[366903183,1750561849828,-490.0,0.00019178,2]
[366903184,1750561849838,-558.54,0.00019178,2]
[366903185,1750561849847,-776.54,0.00019178,2]
[366903186,1750561849858,-881.2,0.00019178,2]
[366903187,1750561849869,-490.0,0.00019178,2]
[366903188,1750561849879,-490.0,0.00019178,2]
[366903189,1750561849889,-490.0,0.00019178,2]
[366903190,1750561849898,-787.09,0.00019178,2]
[366903191,1750561849908,-490.0,0.00019178,2]
[366903192,1750561849918,-490.0,0.00019178,2]
[366903193,1750561849928,-490.0,0.00019178,2]
[366903194,1750561849938,-490.0,0.00019178,2]
[366903195,1750561849949,-931.44,0.00019178,2]
[366903196,1750561849959,-490.0,0.00019178,2]
[366903197,1750561849969,-834.82,0.00019178,2]
[366903198,1750561849979,-1129.9,0.00019178,2]
[366903199,1750561849990,-490.0,0.00019178,2]
[366903200,1750561849999,-490.0,0.00019178,2]
[366903201,1750561850009,-490.0,0.00019178,2]
[366903202,1750561850019,-151.0,0.00019178,2]
[366903203,1750561850028,-490.0,0.00019178,2]
[366903204,1750561850039,-151.957109,0.00019178,2]
[366903205,1750561850049,-722.24,0.00019178,2]
[366903206,1750561850060,-490.0,0.00019178,2]
[366903207,1750561850070,-1389.93,0.00019178,2]
[366903208,1750561850080,-1577.32,0.00019178,2]
[366903209,1750561850090,-2758.28,0.00019178,2]
[366903210,1750561850101,-552.98944465,0.00019178,2]
[366903211,1750561850111,-1815.85,0.00019178,2]
[366903212,1750561850121,-151.0,0.00019178,2]
[366903213,1750561850131,-490.0,0.00019178,2]
[366903214,1750561850148,-490.0,0.00019178,2]
[366903215,1750561850162,-490.0,0.00019178,2]
[366903216,1750561850172,-864.59,0.00019178,2]
[366903217,1750561850181,-595.98099445,0.00019178,2]
[366903218,1750561850191,-586.48,0.00019178,2]
[366903219,1750561850200,-490.0,0.00019178,2]
[366903220,1750561850210,-490.0,0.00019178,2]
[366903221,1750561850219,-1382.96,0.00019178,2]
[366903222,1750561850229,-490.0,0.00019178,2]
[366903223,1750561850239,-490.0,0.00019178,2]
[366903224,1750561850249,-924.42,0.00019178,2]
[366903225,1750561850260,-1663.07,0.00019178,2]
[366903226,1750561850269,-490.0,0.00019178,2]
[366903227,1750561850279,-490.0,0.00019178,2]
[366903228,1750561850289,-490.0,0.00019178,2]
[366903229,1750561850299,-756.36,0.00019178,2]
[366903230,1750561850309,-4682.57,0.00019178,2]
[366903231,1750561850319,-490.0,0.00019178,2]
[366903232,1750561850330,-490.0,0.00019178,2]
[366903233,1750561850342,-490.0,0.00019178,2]
[366903234,1750561850353,-490.0,0.00019178,2]
[366903235,1750561850363,-491.05501521,0.00019178,2]
[366903236,1750561850374,-499.08138629,0.00019178,2]
[366903237,1750561850383,-490.0,0.00019178,2]
[366903238,1750561850393,-490.0,0.00019178,2]
[366903239,1750561850402,-1457.77,0.00019178,2]
[366903240,1750561850416,-1796.57,0.00019178,2]
[366903241,1750561850426,-490.0,0.00019178,2]
[366903242,1750561850435,-7017.55,0.00019178,2]
[366903243,1750561850445,-1343.18,0.00019178,2]
[366903244,1750561850455,-1198.52,0.00019178,2]
[366903245,1750561850464,-518.73,0.00019178,2]
[366903246,1750561850473,-490.0,0.00019178,2]
[366903247,1750561850484,-490.0,0.00019178,2]
[366903248,1750561850493,-2615.79,0.00019178,2]
[366903249,1750561850503,-1818.71,0.00019178,2]
[366903250,1750561850512,-7758.69,0.00019178,2]
[366903251,1750561850522,-151.0,0.00019178,2]
[366903252,1750561850531,-490.0,0.00019178,2]
[366903253,1750561850541,-751.9,0.00019178,2]
[366903254,1750561850551,-151.0,0.00019178,2]
[366903255,1750561850560,-490.0,0.00019178,2]
[366903256,1750561850569,-490.0,0.00019178,2]
[366903257,1750561850579,-1143.38,0.00019178,2]
[366903258,1750561850588,-490.0,0.00019178,2]
[366903259,1750561850598,-8675.43,0.00019178,2]
[366903260,1750561850607,-490.0,0.00019178,2]
[366903261,1750561850616,-8675.43,0.00019178,2]
[366903262,1750561850626,-8675.43,0.00019178,2]
[366903263,1750561850635,-8675.43,0.00019178,2]
[366903264,1750561850644,-8675.43,0.00019178,2]
[366903265,1750561850654,-763.06,0.00019178,2]
[366903266,1750561850663,-151.0,0.00019178,2]
[366903267,1750561850673,-490.0,0.00019178,2]
[366903268,1750561850682,-151.0,0.00019178,2]
[366903269,1750561850692,-490.0,0.00019178,2]
[366903270,1750561850702,-2007.85,0.00019178,2]
[366903271,1750561850712,-490.0,0.00019178,2]
[366903272,1750561850721,-490.0,0.00019178,2]
[366903273,1750561850731,-1108.15,0.00019178,2]
[366903274,1750561850740,-490.0,0.00019178,2]
[366903275,1750561850750,-490.0,0.00019178,2]
[366903276,1750561850759,-490.0,0.00019178,2]
[366903277,1750561850769,-1058.95,0.00019178,2]
[366903278,1750561850779,-3193.08,0.00019178,2]
[366903279,1750561850789,-451.99,0.00019178,2]
[366903280,1750561850799,-151.834044,0.00019178,2]
[366903281,1750561850809,-1144.0,0.00019178,2]
[366903282,1750561850819,-29553.09,0.00019178,2]
[366903283,1750561850828,-989.29,0.00019178,2]
[366903284,1750561850838,-490.0,0.00019178,2]
[366903285,1750561850847,-6252.89,0.00019178,2]
[366903286,1750561850857,-1101.51,0.00019178,2]
[366903287,1750561850867,-2154.47,0.00019178,2]
[366903288,1750561850876,-490.0,0.00019178,2]
[366903289,1750561850886,-490.0,0.00019178,2]
[366903290,1750561850896,-490.0,0.00019178,2]
[366903291,1750561850906,-490.0,0.00019178,2]
[366903292,1750561850916,-490.0,0.00019178,2]
[366903293,1750561850926,-490.0,0.00019178,2]
[366903294,1750561850936,-1032.1,0.00019178,2]
[366903295,1750561850946,-490.0,0.00019178,2]
[366903296,1750561850955,-928.51,0.00019178,2]
[366903297,1750561850965,-490.0,0.00019178,2]
[366903298,1750561850974,-1975.01,0.00019178,2]
[366903299,1750561850983,-490.0,0.00019178,2]
[366903300,1750561850993,-2084.72,0.00019178,2]
[366903301,1750561851002,-1654.85,0.00019178,2]
[366903302,1750561851012,-2609.6,0.00019178,2]
[366903303,1750561851021,-4198.69,0.00019178,2]
[366903304,1750561851031,-1941.54,0.00019178,2]
[366903305,1750561851041,-4503.06,0.00019178,2]
[366903306,1750561851052,-1556.22,0.00019178,2]
[366903307,1750561851062,-490.0,0.00019178,2]
[366903308,1750561851072,-490.0,0.00019178,2]
[366903309,1750561851082,-1120.91,0.00019178,2]
[366903310,1750561851092,-2241.14,0.00019178,2]
[366903311,1750561851101,-2004.35,0.00019178,2]
[366903312,1750561851111,-490.0,0.00019178,2]
[366903313,1750561851120,-490.0,0.00019178,2]
[366903314,1750561851130,-490.0,0.00019178,2]
[366903315,1750561851140,-989.78,0.00019178,2]
[366903316,1750561851150,-490.0,0.00019178,2]
[366903317,1750561851160,-2161.67,0.00019178,2]
[366903318,1750561851170,-490.0,0.00019178,2]
[366903319,1750561851180,-3352.91,0.00019178,2]
[366903320,1750561851190,-1923.6,0.00019178,2]
[366903321,1750561851200,-490.0,0.00019178,2]
[366903322,1750561851210,-2889.51,0.00019178,2]
[366903323,1750561851219,-151.0,0.00019178,2]
[366903324,1750561851229,-511.89726798,0.00019178,2]
[366903325,1750561851239,-490.0,0.00019178,2]
[366903326,1750561851252,-151.0,0.00019178,2]
[366903327,1750561851262,-490.0,0.00019178,2]
[366903328,1750561851271,-490.0,0.00019178,2]
[366903329,1750561851281,-716.74,0.00019178,2]
[366903330,1750561851290,-1102.4,0.00019178,2]
[366903331,1750561851301,-490.0,0.00019178,2]
[366903332,1750561851310,-2891.43,0.00019178,2]
[366903333,1750561851319,-490.0,0.00019178,2]
[366903334,1750561851330,-2064.53,0.00019178,2]
[366903335,1750561851339,-356.50307178,0.00019178,2]
[366903336,1750561851349,-490.0,0.00019178,2]
[366903337,1750561851362,-839.56,0.00019178,2]
[366903338,1750561851371,-490.0,0.00019178,2]
[366903339,1750561851381,-490.0,0.00019178,2]
[366903340,1750561851390,-39231.38,0.00019178,2]
[366903341,1750561851400,-1303.83,0.00019178,2]
[366903342,1750561851411,-1507.22,0.00019178,2]
[366903343,1750561851424,-490.0,0.00019178,2]
[366903344,1750561851434,-490.0,0.00019178,2]
[366903345,1750561851445,-6597.68,0.00019178,2]
[366903346,1750561851457,-490.0,0.00019178,2]
[366903347,1750561851467,-3043.05,0.00019178,2]
[366903348,1750561851476,-490.0,0.00019178,2]
[366903349,1750561851486,-490.0,0.00019178,2]
[366903350,1750561851496,-769.15,0.00019178,2]
[366903351,1750561851506,-490.0,0.00019178,2]
[366903352,1750561851516,-1153.14,0.00019178,2]
[366903353,1750561851526,-2428.44,0.00019178,2]
[366903354,1750561851536,-2075.53,0.00019178,2]
[366903355,1750561851545,-6709.58,0.00019178,2]
[366903356,1750561851556,-490.0,0.00019178,2]
[366903357,1750561851565,-279.398262,0.00019178,2]
[366903358,1750561851574,-20454.81,0.00019178,2]
[366903359,1750561851584,-490.0,0.00019178,2]
[366903360,1750561851594,-578.85,0.00019178,2]
[366903361,1750561851603,-490.0,0.00019178,2]
[366903362,1750561851613,-490.0,0.00019178,2]
[366903363,1750561851623,-490.0,0.00019178,2]
[366903364,1750561851634,-8393.25,0.00019178,2]
[366903365,1750561851646,-1920.56,0.00019178,2]
[366903366,1750561851656,-2608.86,0.00019178,2]
[366903367,1750561851666,-1213.56,0.00019178,2]
[366903368,1750561851675,-490.0,0.00019178,2]
[366903369,1750561851685,-2222.16,0.00019178,2]
[366903370,1750561851694,-490.0,0.00019178,2]
[366903371,1750561851704,-1264.08,0.00019178,2]
[366903372,1750561851713,-490.0,0.00019178,2]
[366903373,1750561851723,-490.0,0.00019178,2]
[366903374,1750561851734,-279.398262,0.00019178,2]
[366903375,1750561851743,-151.0,0.00019178,2]
[366903376,1750561851846,-151.0,0.00019178,2]
[366903377,1750561851856,-490.0,0.00019178,2]
[366903378,1750561851866,-4140.7,0.00019178,2]
[366903379,1750561851875,-490.0,0.00019178,2]
[366903380,1750561851884,-160.0439169,0.00019178,2]
[366903381,1750561851894,-490.0,0.00019178,2]
[366903382,1750561851903,-4132.56,0.00019178,2]
[366903383,1750561851913,-731.76,0.00019178,2]
[366903384,1750561851923,-490.0,0.00019178,2]
[366903385,1750561851933,-279.398262,0.00019178,2]
[366903386,1750561851944,-490.0,0.00019178,2]
[366903387,1750561851954,-279.398262,0.00019178,2]
[366903388,1750561851963,-886.31,0.00019178,2]
[366903389,1750561851972,-564.03,0.00019178,2]
[366903390,1750561851982,-2960.77,0.00019178,2]
[366903391,1750561851992,-490.0,0.00019178,2]
[366903392,1750561852002,-8850.71,0.00019178,2]
[366903393,1750561852011,-490.0,0.00019178,2]
[366903394,1750561852020,-4190.23,0.00019178,2]
[366903395,1750561852029,-3071.15,0.00019178,2]
[366903396,1750561852038,-490.0,0.00019178,2]
[366903397,1750561852048,-1515.69,0.00019178,2]
[366903398,1750561852058,-490.0,0.00019178,2]
[366903399,1750561852068,-1137.69,0.00019178,2]
[366903400,1750561852077,-511.26,0.00019178,2]
[366903401,1750561852086,-666.31,0.00019178,2]
[366903402,1750561852095,-490.0,0.00019178,2]
[366903403,1750561852104,-4578.23,0.00019178,2]
[366903404,1750561852114,-490.0,0.00019178,2]
[366903405,1750561852123,-490.0,0.00019178,2]
[366903406,1750561852132,-718.33,0.00019178,2]
[366903407,1750561852141,-490.0,0.00019178,2]
[366903408,1750561852151,-726.9,0.00019178,2]
[366903409,1750561852160,-2464.47,0.00019178,2]
[366903410,1750561852169,-490.0,0.00019178,2]
[366903411,1750561852179,-490.0,0.00019178,2]
[366903412,1750561852188,-490.0,0.00019178,2]
[366903413,1750561852197,-329.53026136,0.00019178,2]
[366903414,1750561852207,-13514.77,0.00019178,2]
[366903415,1750561852216,-1150.77,0.00019178,2]
[366903416,1750561852226,-706.78,0.00019178,2]
[366903417,1750561852236,-490.0,0.00019178,2]
[366903418,1750561852246,-495.88759374,0.00019178,2]
[366903419,1750561852256,-1637.22,0.00019178,2]
[366903420,1750561852266,-490.0,0.00019178,2]
[366903421,1750561852275,-4907.92,0.00019178,2]
[366903422,1750561852285,-490.0,0.00019178,2]
[366903423,1750561852294,-681.53,0.00019178,2]
[366903424,1750561852304,-4999.02,0.00019178,2]
[366903425,1750561852313,-338.35374739,0.00019178,2]
[366903426,1750561852323,-490.0,0.00019178,2]
[366903427,1750561852333,-284.97070251,0.00019178,2]
[366903428,1750561852343,-490.0,0.00019178,2]
[366903429,1750561852352,-2009.95,0.00019178,2]
[366903430,1750561852361,-490.0,0.00019178,2]
[366903431,1750561852370,-528.12,0.00019178,2]
[366903432,1750561852380,-1051.21,0.00019178,2]
[366903433,1750561852390,-490.0,0.00019178,2]
[366903434,1750561852399,-491.61818048,0.00019178,2]
[366903435,1750561852410,-490.0,0.00019178,2]
[366903436,1750561852421,-490.0,0.00019178,2]
[366903437,1750561852430,-8322.86,0.00019178,2]
[366903438,1750561852439,-490.0,0.00019178,2]
[366903439,1750561852449,-2099.09,0.00019178,2]
[366903440,1750561852459,-5194.46,0.00019178,2]
[366903441,1750561852468,-502.8,0.00019178,2]
[366903442,1750561852478,-490.0,0.00019178,2]
[366903443,1750561852491,-455.64032913,0.00019178,2]
[366903444,1750561852501,-2911.91,0.00019178,2]
[366903445,1750561852510,-221.05826938,0.00019178,2]
[366903446,1750561852520,-1988.15,0.00019178,2]
[366903447,1750561852530,-4114.14,0.00019178,2]
[366903448,1750561852539,-490.0,0.00019178,2]
[366903449,1750561852549,-4114.14,0.00019178,2]
[366903450,1750561852558,-4114.14,0.00019178,2]
[366903451,1750561852568,-850.2,0.00019178,2]
[366903452,1750561852577,-490.0,0.00019178,2]
[366903453,1750561852586,-4114.14,0.00019178,2]
[366903454,1750561852595,-500.95,0.00019178,2]
[366903455,1750561852605,-2841.84,0.00019178,2]
[366903456,1750561852614,-8897.21,0.00019178,2]
[366903457,1750561852623,-490.0,0.00019178,2]
[366903458,1750561852633,-507.44166832,0.00019178,2]
[366903459,1750561852642,-490.0,0.00019178,2]
[366903460,1750561852652,-930.64,0.00019178,2]
[366903461,1750561852662,-490.0,0.00019178,2]
[366903462,1750561852671,-490.0,0.00019178,2]
[366903463,1750561852681,-490.0,0.00019178,2]
[366903464,1750561852691,-889.02,0.00019178,2]
[366903465,1750561852702,-2203.87,0.00019178,2]
[366903466,1750561852712,-6154.42,0.00019178,2]
[366903467,1750561852721,-572.02224637,0.00019178,2]
[366903468,1750561852731,-490.0,0.00019178,2]
[366903469,1750561852740,-2724.78,0.00019178,2]
[366903470,1750561852750,-490.0,0.00019178,2]
[366903471,1750561852759,-490.0,0.00019178,2]
[366903472,1750561852768,-490.0,0.00019178,2]
[366903473,1750561852778,-2247.58,0.00019178,2]
[366903474,1750561852787,-490.0,0.00019178,2]
[366903475,1750561852797,-2012.86,0.00019178,2]
[366903476,1750561852807,-2398.45,0.00019178,2]
[366903477,1750561852816,-490.0,0.00019178,2]
[366903478,1750561852826,-490.0,0.00019178,2]
[366903479,1750561852835,-490.0,0.00019178,2]
[366903480,1750561852845,-490.0,0.00019178,2]
[366903481,1750561852855,-490.0,0.00019178,2]
[366903482,1750561852864,-1082.3,0.00019178,2]
[366903483,1750561852874,-490.0,0.00019178,2]
[366903484,1750561852883,-5784.52,0.00019178,2]
[366903485,1750561852893,-2698.17,0.00019178,2]
[366903486,1750561852903,-1633.57,0.00019178,2]
[366903487,1750561852913,-490.0,0.00019178,2]
[366903488,1750561852922,-3993.65,0.00019178,2]
[366903489,1750561852931,-763.19,0.00019178,2]
[366903490,1750561852941,-490.0,0.00019178,2]
[366903491,1750561852951,-642.06,0.00019178,2]
[366903492,1750561852960,-490.0,0.00019178,2]
[366903493,1750561852969,-674.65,0.00019178,2]
[366903494,1750561852979,-490.0,0.00019178,2]
[366903495,1750561852989,-2298.67,0.00019178,2]
[366903496,1750561852998,-490.0,0.00019178,2]
[366903497,1750561853007,-490.0,0.00019178,2]
[366903498,1750561853017,-490.0,0.00019178,2]
[366903499,1750561853026,-490.0,0.00019178,2]
[366903500,1750561853036,-3931.61,0.00019178,2]
[366903501,1750561853045,-505.07806336,0.00019178,2]
[366903502,1750561853055,-2855.8,0.00019178,2]
[366903503,1750561853064,-2601.27,0.00019178,2]
[366903504,1750561853074,-559.67,0.00019178,2]
[366903505,1750561853083,-490.0,0.00019178,2]
[366903506,1750561853093,-1566.31,0.00019178,2]
[366903507,1750561853102,-490.0,0.00019178,2]
[366903508,1750561853111,-490.0,0.00019178,2]
[366903509,1750561853121,-1673.02,0.00019178,2]
[366903510,1750561853131,-447.70510549,0.00019178,2]
[366903511,1750561853141,-1537.62,0.00019178,2]
[366903512,1750561853150,-3193.02,0.00019178,2]
[366903513,1750561853159,-490.0,0.00019178,2]
[366903514,1750561853168,-460.200579,0.00019178,2]
[366903515,1750561853178,-490.0,0.00019178,2]
[366903516,1750561853187,-490.0,0.00019178,2]
[366903517,1750561853196,-490.0,0.00019178,2]
[366903518,1750561853206,-490.0,0.00019178,2]
[366903519,1750561853216,-4135.5,0.00019178,2]
[366903520,1750561853225,-490.0,0.00019178,2]
[366903521,1750561853235,-1475.52,0.00019178,2]
[366903522,1750561853244,-803.9,0.00019178,2]
[366903523,1750561853254,-490.0,0.00019178,2]
[366903524,1750561853263,-490.0,0.00019178,2]
[366903525,1750561853273,-834.67,0.00019178,2]
[366903526,1750561853283,-490.0,0.00019178,2]
[366903527,1750561853292,-7967.42,0.00019178,2]
[366903528,1750561853302,-490.0,0.00019178,2]
[366903529,1750561853312,-490.0,0.00019178,2]
[366903530,1750561853322,-490.0,0.00019178,2]
[366903531,1750561853331,-1826.21,0.00019178,2]
[366903532,1750561853340,-490.0,0.00019178,2]
[366903533,1750561853350,-315.65450104,0.00019178,2]
[366903534,1750561853359,-846.6,0.00019178,2]
[366903535,1750561853369,-698.13,0.00019178,2]
[366903536,1750561853379,-965.39,0.00019178,2]
[366903537,1750561853389,-4220.81,0.00019178,2]
[366903538,1750561853398,-490.0,0.00019178,2]
[366903539,1750561853407,-1210.48,0.00019178,2]
[366903540,1750561853420,-2065.84,0.00019178,2]
[366903541,1750561853430,-490.0,0.00019178,2]
[366903542,1750561853440,-2710.57,0.00019178,2]
[366903543,1750561853449,-939.06,0.00019178,2]
[366903544,1750561853461,-3422.04,0.00019178,2]
[366903545,1750561853471,-490.0,0.00019178,2]
[366903546,1750561853480,-490.0,0.00019178,2]
[366903547,1750561853491,-597.55,0.00019178,2]
[366903548,1750561853500,-4894.65,0.00019178,2]
[366903549,1750561853511,-529.24138181,0.00019178,2]
[366903550,1750561853520,-3851.58,0.00019178,2]
[366903551,1750561853530,-494.57770239,0.00019178,2]
[366903552,1750561853540,-459.961665,0.00019178,2]
[366903553,1750561853550,-459.961665,0.00019178,2]
[366903554,1750561853559,-490.0,0.00019178,2]
[366903555,1750561853568,-997.99,0.00019178,2]
[366903556,1750561853578,-758.39,0.00019178,2]
[366903557,1750561853587,-912.75,0.00019178,2]
[366903558,1750561853596,-4428.4,0.00019178,2]
[366903559,1750561853606,-151.0,0.00019178,2]
[366903560,1750561853618,-2841.45,0.00019178,2]
[366903561,1750561853627,-151.0,0.00019178,2]
[366903562,1750561853636,-1476.9,0.00019178,2]
[366903563,1750561853646,-2210.69,0.00019178,2]
[366903564,1750561853655,-490.0,0.00019178,2]
[366903565,1750561853678,-490.0,0.00019178,2]
[366903566,1750561853687,-151.0,0.00019178,2]
[366903567,1750561853697,-490.0,0.00019178,2]
[366903568,1750561853706,-151.0,0.00019178,2]
[366903569,1750561853716,-459.961665,0.00019178,2]
[366903570,1750561853725,-2979.24,0.00019178,2]
[366903571,1750561853736,-459.961665,0.00019178,2]
[366903572,1750561853746,-1118.79,0.00019178,2]
[366903573,1750561853756,-990.94,0.00019178,2]
[366903574,1750561853766,-978.09,0.00019178,2]
[366903575,1750561853775,-490.0,0.00019178,2]
[366903576,1750561853785,-490.0,0.00019178,2]
[366903577,1750561853795,-490.0,0.00019178,2]
[366903578,1750561853804,-1549.11,0.00019178,2]
[366903579,1750561853814,-20540.06,0.00019178,2]
[366903580,1750561853824,-490.0,0.00019178,2]
[366903581,1750561853833,-490.0,0.00019178,2]
[366903582,1750561853843,-17819.97,0.00019178,2]
[366903583,1750561853852,-490.0,0.00019178,2]
[366903584,1750561853862,-490.0,0.00019178,2]
[366903585,1750561853872,-496.48,0.00019178,2]
[366903586,1750561853881,-2766.56,0.00019178,2]
[366903587,1750561853891,-490.0,0.00019178,2]
[366903588,1750561853901,-5912.7,0.00019178,2]
[366903589,1750561853911,-490.0,0.00019178,2]
[366903590,1750561853921,-490.0,0.00019178,2]
[366903591,1750561853931,-490.0,0.00019178,2]
[366903592,1750561853939,-2566.52,0.00019178,2]
[366903593,1750561853950,-4286.41,0.00019178,2]
[366903594,1750561853958,-490.0,0.00019178,2]
[366903595,1750561853967,-2396.11,0.00019178,2]
[366903596,1750561853976,-490.0,0.00019178,2]
[366903597,1750561853986,-2879.49,0.00019178,2]
[366903598,1750561853996,-490.0,0.00019178,2]
[366903599,1750561854006,-490.0,0.00019178,2]
[366903600,1750561854015,-490.0,0.00019178,2]
[366903601,1750561854025,-897.71,0.00019178,2]
[366903602,1750561854034,-535.10738507,0.00019178,2]
[366903603,1750561854044,-490.0,0.00019178,2]
[366903604,1750561854053,-13039.18,0.00019178,2]
[366903605,1750561854062,-490.0,0.00019178,2]
[366903606,1750561854071,-490.0,0.00019178,2]
[366903607,1750561854080,-490.0,0.00019178,2]
[366903608,1750561854089,-152.714944,0.00019178,2]
[366903609,1750561854098,-490.0,0.00019178,2]
[366903610,1750561854108,-1457.29,0.00019178,2]
[366903611,1750561854118,-490.0,0.00019178,2]
[366903612,1750561854129,-490.0,0.00019178,2]
[366903613,1750561854138,-2343.24,0.00019178,2]
[366903614,1750561854147,-490.0,0.00019178,2]
[366903615,1750561854158,-1817.82,0.00019178,2]
[366903616,1750561854167,-490.0,0.00019178,2]
[366903617,1750561854177,-1185.31,0.00019178,2]
[366903618,1750561854184,-1957.13,0.00019178,2]
[366903619,1750561854191,-151.0,0.00019178,2]
[366903620,1750561854199,-500.0,0.00019178,2]
[366903621,1750561854209,-500.0,0.00019178,2]
[366903622,1750561854220,-151.0,0.00019178,2]
[366903623,1750561854229,-500.0,0.00019178,2]
[366903624,1750561854239,-5999.37,0.00019178,2]
[366903625,1750561854248,-894.65,0.00019178,2]
[366903626,1750561854258,-2484.82,0.00019178,2]
[366903627,1750561854267,-500.0,0.00019178,2]
[366903628,1750561854276,-4901.1,0.00019178,2]
[366903629,1750561854286,-490.0,0.00019178,2]
[366903630,1750561854296,-490.0,0.00019178,2]
[366903631,1750561854307,-490.0,0.00019178,2]
[366903632,1750561854316,-1407.52,0.00019178,2]
[366903633,1750561854326,-490.0,0.00019178,2]
[366903634,1750561854335,-5232.63,0.00019178,2]
[366903635,1750561854344,-944.32,0.00019178,2]
[366903636,1750561854354,-490.0,0.00019178,2]
[366903637,1750561854363,-540.76,0.00019178,2]
[366903638,1750561854373,-3678.01,0.00019178,2]
[366903639,1750561854382,-490.0,0.00019178,2]
[366903640,1750561854392,-1413.4,0.00019178,2]
[366903641,1750561854401,-490.0,0.00019178,2]
[366903642,1750561854413,-490.0,0.00019178,2]
[366903643,1750561854424,-722.2,0.00019178,2]
[366903644,1750561854434,-490.0,0.00019178,2]
[366903645,1750561854445,-5828.92,0.00019178,2]
[366903646,1750561854454,-9876.46,0.00019178,2]
[366903647,1750561854466,-490.0,0.00019178,2]
[366903648,1750561854476,-490.0,0.00019178,2]
[366903649,1750561854486,-3190.8,0.00019178,2]
[366903650,1750561854496,-4039.42,0.00019178,2]
[366903651,1750561854506,-490.0,0.00019178,2]
[366903652,1750561854517,-490.0,0.00019178,2]
[366903653,1750561854527,-490.0,0.00019178,2]
[366903654,1750561854538,-690.7,0.00019178,2]
[366903655,1750561854549,-5047.72,0.00019178,2]
[366903656,1750561854563,-490.0,0.00019178,2]